[Event "Nordic Chess-ch 2019"]
[Site "Sarpsborg"]
[Date "2019.06.24"]
[Round "6.19"]
[White "Kreken, Eivind Grunt"]
[Black "Gonzalez, Francisco Silva"]
[Result "1/2-1/2"]
[ECO "E32"]
[WhiteElo "1784"]
[BlackElo "2095"]
[Annotator "NA"]
[PlyCount "115"]
[EventDate "2019.06.21"]
[EventType "swiss"]
[EventCountry "NOR"]
[SourceTitle "playchess.com"]
[Source "ChessBase"]
[SourceQuality "1"]
[TimeControl "40/5400+30:1800+30"]

1. d4 {[%emt 0:00:00]} Nf6 {[%emt 0:10:44]} 2. c4 {[%emt 0:00:00]} e6 {[%emt 0:00:09]} 3. Nc3 {[%emt 0:00:00]} Bb4 {[%emt 0:00:15]} 4. Qc2 {[%emt 0:00:07]} d6 {[%emt 0:00:08]} 5. Nf3 {[%emt 0:01:21]} Nbd7 {[%emt 0:00:43]} 6. a3 {[%emt 0:20:06]} Bxc3+ {[%emt 0:00:13]} 7. Qxc3 {[%emt 0:00:14]} b6 {[%emt 0:00:09]} 8. g3 {[%emt 0:08:03]} Bb7 {[%emt 0:00:05]} 9. Bg2 {[%emt 0:00:36]} O-O {[%emt 0:00:20]} 10. O-O {[%emt 0:00:18]} Qe7 {[%emt 0:02:05]} 11. Bg5 {[%emt 0:04:39]} Rfe8 {[%emt 0:01:50]} 12. Nd2 {[%emt 0:09:17]} Bxg2 {[%emt 0:01:17]} 13. Kxg2 {[%emt 0:00:05]} e5 {[%emt 0:00:30]} 14. e4 {[%emt 0:16:15]} Nxe4 {[%emt 0:14:28]} 15. Nxe4 {[%emt 0:05:15]} exd4 {[%emt 0:00:10]} 16. Bxe7 {[%emt 0:00:23]} dxc3 {[%emt 0:00:19]} 17. Nxc3 {[%emt 0:04:19]} Rxe7 {[%emt 0:00:43]} 18. Nd5 {[%emt 0:00:25]} Re2 {[%emt 0:01:20]} 19. Nxc7 {[%emt 0:00:52]} Rc8 {[%emt 0:03:20]} 20. Nb5 {[%emt 0:02:51]} Rxb2 {[%emt 0:07:20]} 21. Nxd6 {[%emt 0:00:14]} Rc6 {[%emt 0:05:12]} 22. Rfd1 {[%emt 0:05:32]} Nf8 {[%emt 0:06:41]} 23. Rd3 {[%emt 0:02:05]} g6 {[%emt 0:01:31]} 24. Rad1 {[%emt 0:01:20]} Ne6 {[%emt 0:01:01]} 25. R3d2 {[%emt 0:02:08]} Rxd2 {[%emt 0:01:42]} 26. Rxd2 {[%emt 0:00:07]} Kf8 {[%emt 0:00:32]} 27. Nb5 {[%emt 0:06:18]} a6 {[%emt 0:28:17]} 28. Nd4 {[%emt 0:00:16]} Nxd4 {[%emt 0:02:04]} 29. Rxd4 {[%emt 0:00:09]} Ke7 {[%emt 0:00:09]} 30. Kf3 {[%emt 0:01:30]} Rc5 {[%emt 0:00:09]} 31. Ke3 {[%emt 0:01:08]} Ra5 {[%emt 0:00:15]} 32. Rd3 {[%emt 0:00:10]} Ra4 {[%emt 0:00:18]} 33. Rc3 {[%emt 0:00:58]} Kd6 {[%emt 0:00:09]} 34. Kd2 {[%emt 0:01:43]} Kc5 {[%emt 0:00:43]} 35. Kd3 {[%emt 0:00:09]} f6 {[%emt 0:00:17]} 36. f3 {[%emt 0:01:25]} f5 {[%emt 0:00:25]} 37. f4 {[%emt 0:02:03]} h6 {[%emt 0:00:59]} 38. h3 {[%emt 0:01:30]} g5 {[%emt 0:00:17]} 39. fxg5 {[%emt 0:00:35]} hxg5 {[%emt 0:00:06]} 40. h4 {[%emt 0:00:11]} gxh4 {[%emt 0:05:07]} 41. gxh4 {[%emt 0:30:07]} Kd6 {[%emt 0:30:06]} 42. Ke3 {[%emt 0:02:28]} Ke6 {[%emt 0:02:14]} 43. Rb3 {[%emt 0:02:20]} Ke5 {[%emt 0:00:06]} 44. h5 {[%emt 0:00:00]} Rxc4 {[%emt 0:00:00]} 45. h6 {[%emt 0:00:00]} b5 {[%emt 0:00:00]} 46. Kf2 {[%emt 0:00:00]} Rh4 {[%emt 0:00:00]} 47. a4 {[%emt 0:00:00]} b4 {[%emt 0:00:00]} 48. Kg3 {[%emt 0:00:00]} Rg4+ {[%emt 0:00:00]} 49. Kf3 {[%emt 0:00:00]} a5 {[%emt 0:00:00]} 50. h7 {[%emt 0:00:00]} Rh4 {[%emt 0:00:00]} 51. Re3+ {[%emt 0:00:00]} Kd4 {[%emt 0:00:00]} 52. Re7 {[%emt 0:00:00]} Kc3 {[%emt 0:00:00]} 53. Ra7 {[%emt 0:00:00]} Kb3 {[%emt 0:00:00]} 54. Rxa5 {[%emt 0:00:00]} Ka2 {[%emt 0:00:00]} 55. Rb5 {[%emt 0:00:00]} b3 {[%emt 0:00:00]} 56. a5 {[%emt 0:00:00]} b2 {[%emt 0:00:00]} 57. a6 {[%emt 0:00:00]} Rxh7 {[%emt 0:00:00]} 58. Ra5+ {[%emt 0:00:00]} 1/2-1/2

[Event "Nordic Chess-ch 2019"]
[Site "Sarpsborg"]
[Date "2019.06.24"]
[Round "6.20"]
[White "Fernandez, Juan Pablo"]
[Black "Jashari, Driton"]
[Result "1/2-1/2"]
[ECO "E01"]
[WhiteElo "2066"]
[BlackElo "1755"]
[Annotator "NA"]
[PlyCount "50"]
[EventDate "2019.06.21"]
[EventType "swiss"]
[EventCountry "NOR"]
[SourceTitle "playchess.com"]
[Source "ChessBase"]
[SourceQuality "1"]
[TimeControl "40/5400+30:1800+30"]

1. c4 {[%emt 0:00:00]} c6 {[%emt 0:03:04]} 2. g3 {[%emt 0:00:00]} Nf6 {[%emt 0:02:04]} 3. Nf3 {[%emt 0:00:42]} e6 {[%emt 0:01:59]} 4. Bg2 {[%emt 0:01:12]} d5 {[%emt 0:00:02]} 5. O-O {[%emt 0:06:37]} Nbd7 {[%emt 0:06:32]} 6. Qc2 {[%emt 0:01:19]} Be7 {[%emt 0:03:27]} 7. d4 {[%emt 0:01:33]} Qc7 {[%emt 0:01:53]} 8. Bf4 {[%emt 0:09:39]} Bd6 {[%emt 0:00:33]} 9. Bxd6 {[%emt 0:00:27]} Qxd6 {[%emt 0:00:29]} 10. c5 {[%emt 0:00:46]} Qe7 {[%emt 0:00:51]} 11. Nbd2 {[%emt 0:05:19]} e5 {[%emt 0:00:02]} 12. e4 {[%emt 0:05:00]} dxe4 {[%emt 0:08:59]} 13. Nxe5 {[%emt 0:13:20]} O-O {[%emt 0:26:41]} 14. Nxd7 {[%emt 0:05:05]} Qxd7 {[%emt 0:01:35]} 15. Nxe4 {[%emt 0:02:07]} Qxd4 {[%emt 0:00:15]} 16. Rad1 {[%emt 0:02:56]} Qe5 {[%emt 0:00:03]} 17. Nd6 {[%emt 0:05:41]} Rb8 {[%emt 0:04:10]} 18. Rfe1 {[%emt 0:01:29]} Qh5 {[%emt 0:00:03]} 19. Nxc8 {[%emt 0:10:30]} Rbxc8 {[%emt 0:00:25]} 20. Re7 {[%emt 0:01:26]} Rcd8 {[%emt 0:04:42]} 21. Rd6 {[%emt 0:02:48]} Rde8 {[%emt 0:03:44]} 22. Rxb7 {[%emt 0:23:04]} Re1+ 23. Bf1 Qh3 24. Qc4 Ree8 {[%emt 0:30:27]} 25. Bg2 {[%emt 0:01:30]} Qh5 1/2-1/2

[Event "Nordic Chess-ch 2019"]
[Site "Sarpsborg"]
[Date "2019.06.24"]
[Round "6.21"]
[White "Johansen, Torbjorn Reidar"]
[Black "Thorn, Eric"]
[Result "0-1"]
[ECO "C60"]
[WhiteElo "1754"]
[BlackElo "2230"]
[Annotator "NA"]
[PlyCount "70"]
[EventDate "2019.06.21"]
[EventType "swiss"]
[EventCountry "NOR"]
[SourceTitle "playchess.com"]
[Source "ChessBase"]
[SourceQuality "1"]
[TimeControl "40/5400+30:1800+30"]

1. e4 {[%emt 0:00:00]} e5 {[%emt 0:00:00]} 2. Nf3 {[%emt 0:00:00]} Nc6 {[%emt 0:00:00]} 3. Bb5 {[%emt 0:00:00]} g6 {[%emt 0:00:00]} 4. O-O {[%emt 0:00:59]} Bg7 {[%emt 0:00:10]} 5. c3 {[%emt 0:02:31]} Nge7 {[%emt 0:07:19]} 6. d4 {[%emt 0:04:43]} exd4 {[%emt 0:01:10]} 7. cxd4 {[%emt 0:00:28]} d5 {[%emt 0:00:05]} 8. exd5 {[%emt 0:05:21]} Nxd5 {[%emt 0:00:07]} 9. Re1+ {[%emt 0:00:14]} Be6 {[%emt 0:00:06]} 10. Bg5 {[%emt 0:06:52]} Qd6 {[%emt 0:01:34]} 11. Nc3 {[%emt 0:03:08]} Nxc3 {[%emt 0:06:54]} 12. bxc3 {[%emt 0:00:11]} O-O {[%emt 0:00:11]} 13. Qd2 {[%emt 0:05:43]} a6 {[%emt 0:19:12]} 14. Bf1 {[%emt 0:08:31]} Rfe8 {[%emt 0:03:05]} 15. Bf4 {[%emt 0:00:55]} Qd7 {[%emt 0:04:51]} 16. h3 {[%emt 0:04:06]} Bd5 {[%emt 0:04:31]} 17. Ne5 {[%emt 0:02:54]} Nxe5 {[%emt 0:01:25]} 18. Bxe5 {[%emt 0:02:13]} Bxe5 {[%emt 0:00:49]} 19. Rxe5 {[%emt 0:00:21]} Rxe5 {[%emt 0:00:06]} 20. dxe5 {[%emt 0:00:05]} Rd8 {[%emt 0:04:09]} 21. f4 {[%emt 0:01:54]} Bc6 {[%emt 0:03:43]} 22. Qf2 {[%emt 0:08:21]} Qd2 {[%emt 0:08:27]} 23. Qh4 {[%emt 0:02:09]} Qe3+ {[%emt 0:03:40]} 24. Kh2 {[%emt 0:05:52]} Rd2 {[%emt 0:00:32]} 25. Re1 {[%emt 0:01:31]} Qf2 {[%emt 0:02:37]} 26. Qxf2 {[%emt 0:02:16]} Rxf2 {[%emt 0:00:19]} 27. Kg3 {[%emt 0:04:44]} Rxa2 {[%emt 0:00:12]} 28. Rd1 {[%emt 0:00:05]} Rc2 {[%emt 0:02:07]} 29. Rd8+ {[%emt 0:00:23]} Kg7 {[%emt 0:00:05]} 30. c4 {[%emt 0:00:22]} a5 {[%emt 0:01:19]} 31. Rc8 {[%emt 0:00:26]} a4 {[%emt 0:00:19]} 32. Rxc7 {[%emt 0:00:26]} a3 {[%emt 0:00:38]} 33. e6 {[%emt 0:02:59]} a2 {[%emt 0:00:06]} 34. e7 {[%emt 0:01:12]} a1=Q {[%emt 0:00:06]} 35. Rxc6 {[%emt 0:00:22]} Qe1+ {[%emt 0:00:04]} 0-1

[Event "Nordic Chess-ch 2019"]
[Site "Sarpsborg"]
[Date "2019.06.24"]
[Round "6.22"]
[White "Neretljak, Nedzad"]
[Black "Henriksen, Morgan"]
[Result "1-0"]
[ECO "B22"]
[WhiteElo "2114"]
[BlackElo "1717"]
[Annotator "NA"]
[PlyCount "41"]
[EventDate "2019.06.21"]
[EventType "swiss"]
[EventCountry "NOR"]
[SourceTitle "playchess.com"]
[Source "ChessBase"]
[SourceQuality "1"]
[TimeControl "40/5400+30:1800+30"]

1. e4 {[%emt 0:00:00]} c5 {[%emt 0:02:22]} 2. c3 {[%emt 0:00:05]} g6 {[%emt 0:00:23]} 3. d4 {[%emt 0:00:07]} cxd4 {[%emt 0:00:36]} 4. cxd4 {[%emt 0:00:08]} Bg7 {[%emt 0:00:08]} 5. h4 {[%emt 0:00:39]} b6 {[%emt 0:02:04]} 6. h5 {[%emt 0:00:11]} gxh5 {[%emt 0:02:43]} 7. Bc4 {[%emt 0:00:46]} e6 {[%emt 0:00:26]} 8. Nc3 {[%emt 0:01:07]} Bb7 {[%emt 0:00:39]} 9. d5 {[%emt 0:00:52]} Qc7 {[%emt 0:02:47]} 10. Qd3 {[%emt 0:03:33]} Nf6 {[%emt 0:04:52]} 11. Nge2 {[%emt 0:00:34]} a6 {[%emt 0:08:22]} 12. Bb3 {[%emt 0:06:56]} b5 {[%emt 0:05:22]} 13. a3 {[%emt 0:00:19]} Qd6 {[%emt 0:02:49]} 14. Bf4 {[%emt 0:06:17]} Qc5 {[%emt 0:05:13]} 15. Qg3 {[%emt 0:05:12]} O-O {[%emt 0:10:32]} 16. Bh6 {[%emt 0:01:59]} Ng4 {[%emt 0:00:55]} 17. Bxg7 {[%emt 0:00:54]} Kxg7 {[%emt 0:06:45]} 18. Rxh5 {[%emt 0:00:40]} f5 {[%emt 0:01:33]} 19. exf5 {[%emt 0:02:41]} exf5 {[%emt 0:02:23]} 20. Rg5+ {[%emt 0:00:41]} Kh6 {[%emt 0:03:11]} 21. Qh4# {[%emt 0:00:10]} 1-0

[Event "Nordic Chess-ch 2019"]
[Site "Sarpsborg"]
[Date "2019.06.24"]
[Round "6.23"]
[White "Hamre, Kenneth"]
[Black "Eiding, Amanda Mai Irgens"]
[Result "1-0"]
[ECO "A06"]
[WhiteElo "2033"]
[BlackElo "1655"]
[Annotator "NA"]
[PlyCount "113"]
[EventDate "2019.06.21"]
[EventType "swiss"]
[EventCountry "NOR"]
[SourceTitle "playchess.com"]
[Source "ChessBase"]
[SourceQuality "1"]
[TimeControl "40/5400+30:1800+30"]

1. Nf3 {[%emt 0:00:16]} d5 {[%emt 0:00:00]} 2. b3 {[%emt 0:00:08]} Nf6 {[%emt 0:00:34]} 3. Bb2 {[%emt 0:00:05]} e6 {[%emt 0:00:45]} 4. e3 {[%emt 0:00:53]} c5 {[%emt 0:00:21]} 5. Bb5+ {[%emt 0:01:36]} Bd7 {[%emt 0:01:14]} 6. Be2 {[%emt 0:00:20]} Nc6 {[%emt 0:01:30]} 7. O-O {[%emt 0:00:09]} Bd6 {[%emt 0:01:47]} 8. d4 {[%emt 0:00:18]} O-O {[%emt 0:02:49]} 9. Ne5 {[%emt 0:03:47]} cxd4 {[%emt 0:04:19]} 10. exd4 {[%emt 0:00:21]} Qc7 {[%emt 0:00:42]} 11. f4 {[%emt 0:00:24]} Ne4 {[%emt 0:06:14]} 12. Nd2 {[%emt 0:08:05]} Nxd2 {[%emt 0:05:00]} 13. Qxd2 {[%emt 0:00:03]} f6 {[%emt 0:00:09]} 14. Nxd7 {[%emt 0:05:04]} Qxd7 {[%emt 0:00:17]} 15. Bf3 {[%emt 0:00:08]} f5 {[%emt 0:09:39]} 16. c4 {[%emt 0:16:38]} Bb4 {[%emt 0:07:43]} 17. Qe3 {[%emt 0:05:34]} Ba5 {[%emt 0:10:07]} 18. Rfd1 {[%emt 0:11:24]} Rfd8 {[%emt 0:09:50]} 19. Rac1 {[%emt 0:10:17]} Rac8 {[%emt 0:03:17]} 20. g3 {[%emt 0:01:49]} Bb6 {[%emt 0:02:00]} 21. c5 {[%emt 0:00:10]} Bc7 {[%emt 0:02:03]} 22. a3 {[%emt 0:02:53]} Na5 {[%emt 0:04:41]} 23. Be2 {[%emt 0:04:41]} a6 {[%emt 0:01:25]} 24. b4 {[%emt 0:00:32]} Nc6 {[%emt 0:00:12]} 25. Bc3 {[%emt 0:01:36]} Na7 {[%emt 0:01:10]} 26. Be1 {[%emt 0:01:25]} Re8 {[%emt 0:02:09]} 27. Qb3 {[%emt 0:00:16]} Bd8 {[%emt 0:02:09]} 28. a4 {[%emt 0:01:15]} b5 {[%emt 0:08:41]} 29. Ra1 {[%emt 0:05:20]} Rb8 {[%emt 0:01:38]} 30. axb5 {[%emt 0:00:44]} axb5 {[%emt 0:00:17]} 31. Ra6 {[%emt 0:00:25]} Nc6 {[%emt 0:00:41]} 32. Bf2 {[%emt 0:02:36]} Kf8 {[%emt 0:01:35]} 33. Rda1 {[%emt 0:04:36]} Bc7 {[%emt 0:01:54]} 34. Bd3 {[%emt 0:00:58]} Rec8 {[%emt 0:00:36]} 35. Qb2 {[%emt 0:00:20]} Bd8 {[%emt 0:00:37]} 36. R1a2 {[%emt 0:03:35]} g6 {[%emt 0:00:45]} 37. Qc3 {[%emt 0:05:12]} Kf7 {[%emt 0:00:59]} 38. Kg2 {[%emt 0:02:57]} Kf8 {[%emt 0:00:17]} 39. Be2 {[%emt 0:01:33]} Kf7 {[%emt 0:00:24]} 40. Be3 {[%emt 0:00:55]} Kf8 {[%emt 0:00:13]} 41. h3 {[%emt 0:05:20]} Kf7 {[%emt 0:00:15]} 42. Ra1 {[%emt 0:02:32]} Bc7 {[%emt 0:03:06]} 43. Qb2 {[%emt 0:00:18]} Rg8 {[%emt 0:01:08]} 44. Qd2 {[%emt 0:03:11]} Ke7 {[%emt 0:00:58]} 45. Bd3 {[%emt 0:00:22]} Kf7 {[%emt 0:00:22]} 46. Rb1 {[%emt 0:00:22]} Ke7 {[%emt 0:01:40]} 47. Qe2 {[%emt 0:00:34]} Nd8 {[%emt 0:01:30]} 48. Rba1 {[%emt 0:02:41]} Ke8 {[%emt 0:01:53]} 49. Bd2 {[%emt 0:00:56]} Rg7 {[%emt 0:02:14]} 50. c6 {[%emt 0:00:56]} Nxc6 {[%emt 0:02:39]} 51. Bxb5 {[%emt 0:00:06]} Rxb5 {[%emt 0:00:06]} 52. Qxb5 {[%emt 0:00:14]} Nxd4 {[%emt 0:00:08]} 53. Ra8+ {[%emt 0:03:16]} Ke7 {[%emt 0:00:50]} 54. Qc5+ {[%emt 0:00:12]} Kf6 {[%emt 0:01:55]} 55. Qxd4+ {[%emt 0:00:07]} e5 {[%emt 0:00:13]} 56. fxe5+ {[%emt 0:00:33]} Bxe5 {[%emt 0:00:36]} 57. R1a6+ {[%emt 0:00:05]} 1-0

[Event "Nordic Chess-ch 2019"]
[Site "Sarpsborg"]
[Date "2019.06.24"]
[Round "6.24"]
[White "Schouten, Mathias Lind"]
[Black "Strand, Vetle Bjorge"]
[Result "1-0"]
[ECO "C06"]
[WhiteElo "1967"]
[BlackElo "1609"]
[Annotator "NA"]
[PlyCount "165"]
[EventDate "2019.06.21"]
[EventType "swiss"]
[EventCountry "NOR"]
[SourceTitle "playchess.com"]
[Source "ChessBase"]
[SourceQuality "1"]
[TimeControl "40/5400+30:1800+30"]

1. e4 {[%emt 0:00:00]} e6 {[%emt 0:00:00]} 2. d4 {[%emt 0:00:00]} d5 {[%emt 0:00:00]} 3. Nd2 {[%emt 0:00:00]} Nf6 {[%emt 0:00:00]} 4. e5 {[%emt 0:00:00]} Nfd7 {[%emt 0:00:00]} 5. Bd3 {[%emt 0:00:05]} c5 {[%emt 0:00:06]} 6. c3 {[%emt 0:00:04]} Nc6 {[%emt 0:00:05]} 7. Ne2 {[%emt 0:00:20]} Be7 {[%emt 0:01:45]} 8. f4 {[%emt 1:33:31] C06: French Tarrasch: 3...Nf6 4 e5 Nfd7 5 Bd3 main lines} (8. Nf3 a5 9. O-O cxd4 10. cxd4 Nb6 11. Nc3 Bd7 12. a4 Nb4 13. Be2 Nc8 14. Be3 Na7 15. Nd2 O-O 16. f4 f5 17. exf6 Bxf6 18. Nf3 Nac6 {1-0 (47) Naiditsch,A (2704)-Bischoff,K (2519) Germany 2012}) 8... cxd4 {[%emt 0:00:25]} 9. cxd4 {[%emt 0:00:08]} Bh4+ $146 {[%emt 0:02:20]} ({Predecessor:} 9... f5 10. O-O O-O 11. Nf3 Nb6 12. Kh1 Bd7 13. Rg1 Be8 14. h3 a5 15. g4 {0-1 (56) Perez Candelario,M (2504)-Pert,N (2493) Gothenburg 2005}) 10. g3 {[%emt 0:00:46]} Be7 {[%emt 0:00:20]} 11. O-O {[%emt 0:00:53]} a6 {[%emt 0:09:11]} 12. Nf3 {[%emt 0:03:59]} f5 {[%emt 0:07:28]} 13. Kh1 {[%emt 0:10:01]} b5 {[%emt 0:04:18]} 14. Rg1 {[%emt 0:06:45]} h5 {[%emt 0:05:03]} 15. h3 {[%emt 0:02:26]} Nb6 {[%emt 0:02:47]} 16. Nh2 {[%emt 0:08:36]} Bb7 {[%emt 0:10:26]} 17. g4 {[%emt 0:10:27]} hxg4 {[%emt 0:00:37]} 18. hxg4 {[%emt 0:00:05]} g6 {[%emt 0:00:46]} 19. a3 {[%emt 0:09:19]} Na5 {[%emt 0:53:53]} 20. b3 {[%emt 0:03:56]} Qd7 {[%emt 0:06:02]} 21. Bb2 {[%emt 0:09:32]} O-O-O {[%emt 0:04:03]} 22. g5 {[%emt 0:00:05]} Kb8 {[%emt 0:02:21]} 23. Kg2 {[%emt 0:06:20]} Nac4 {[%emt 0:12:50]} 24. Bc1 {[%emt 0:06:11]} Bxa3 {[%emt 0:13:04]} 25. Rxa3 {[%emt 0:00:37]} Nxa3 {[%emt 0:00:14]} 26. Bxa3 {[%emt 0:00:05]} Nc4 {[%emt 0:01:40]} 27. Bc1 {[%emt 0:01:42]} Nb6 {[%emt 0:06:21]} 28. Nf3 {[%emt 0:00:47]} Rh7 {[%emt 0:00:12]} 29. Rh1 {[%emt 0:02:32]} Rdh8 {[%emt 0:00:07]} 30. Rxh7 {[%emt 0:00:31]} Rxh7 {[%emt 0:00:13]} 31. Ba3 {[%emt 0:00:42]} Nc8 {[%emt 0:00:40]} 32. Bc5 {[%emt 0:01:45]} Rh8 {[%emt 0:00:40]} 33. b4 {[%emt 0:07:37]} Qc6 {[%emt 0:00:27]} 34. Qc1 {[%emt 0:03:09]} Qd7 {[%emt 0:00:20]} 35. Ng3 {[%emt 0:01:24]} Rh7 {[%emt 0:00:29]} 36. Bf1 {[%emt 0:00:20]} Rh8 {[%emt 0:00:24]} 37. Qa3 {[%emt 0:01:15]} Qc6 {[%emt 0:00:23]} 38. Qa5 {[%emt 0:00:46]} Rg8 {[%emt 0:00:36]} 39. Ng1 {[%emt 0:00:50]} Rh8 {[%emt 0:00:14]} 40. Nh3 {[%emt 0:01:12]} Rg8 {[%emt 0:00:14]} 41. Ne2 {[%emt 0:30:28]} Rh8 {[%emt 0:33:01]} 42. Nc1 {[%emt 0:00:09]} Ka8 {[%emt 0:00:30]} 43. Nb3 {[%emt 0:00:50]} Na7 {[%emt 0:00:00]} 44. Qa2 {[%emt 0:00:00]} Bc8 {[%emt 0:00:00]} 45. Qd2 {[%emt 0:00:00]} Qd7 {[%emt 0:00:00]} 46. Bxa7 {[%emt 0:00:00]} Kxa7 {[%emt 0:00:00]} 47. Nc5 {[%emt 0:00:00]} Qc6 {[%emt 0:00:00]} 48. Qa2 {[%emt 0:00:00]} Qb6 {[%emt 0:03:32]} 49. Kg3 {[%emt 0:00:00]} Rh7 {[%emt 0:00:00]} 50. Bg2 {[%emt 0:00:00]} Bb7 {[%emt 0:00:00]} 51. Ng1 {[%emt 0:00:00]} Re7 {[%emt 0:00:00]} 52. Nf3 {[%emt 0:00:00]} Rh7 {[%emt 0:00:00]} 53. Nh4 {[%emt 0:00:00]} Rg7 {[%emt 0:00:00]} 54. Kf2 {[%emt 0:00:00]} Ka8 {[%emt 0:06:32]} 55. Ke3 {[%emt 0:00:00]} Ka7 {[%emt 0:00:00]} 56. Kd3 {[%emt 0:00:00]} Ka8 {[%emt 0:00:00]} 57. Qa5 {[%emt 0:04:54]} Qxa5 {[%emt 0:01:06]} 58. bxa5 {[%emt 0:00:02]} Bc8 {[%emt 0:00:29]} 59. Kc3 {[%emt 0:00:13]} Kb8 {[%emt 0:00:41]} 60. Kb3 {[%emt 0:01:08]} Kc7 {[%emt 0:00:29]} 61. Nd3 {[%emt 0:07:29]} Kc6 {[%emt 0:01:09]} 62. Nb4+ {[%emt 0:00:37]} Kc7 {[%emt 0:00:15]} 63. Nxd5+ {[%emt 0:02:02]} exd5 {[%emt 0:00:38]} 64. Bxd5 {[%emt 0:00:06]} Bb7 {[%emt 0:01:14]} 65. Bxb7 {[%emt 0:01:33]} Kxb7 {[%emt 0:00:09]} 66. d5 {[%emt 0:00:34]} Kc7 {[%emt 0:06:22]} (66... Rg8 {keeps fighting.} 67. Kb4 Kc7 $11) 67. Kb4 $2 {[%emt 0:02:35]} (67. Nf3 $18) 67... Kb7 $2 {[%emt 0:01:27]} 68. Kc5 $2 {[%emt 0:03:19]} ({White has to play} 68. e6 $18 Rg8 69. Nf3) 68... Rc7+ $1 {[%emt 0:00:47]} 69. Kd6 {[%emt 0:00:05]} b4 {[%emt 0:00:23]} 70. Nf3 {[%emt 0:01:37]} Kc8 $2 {[%emt 0:01:18]} (70... b3 $11 71. Nd2 b2) 71. Nd4 {[%emt 0:01:07]} Rd7+ $18 {[%emt 0:00:51]} 72. Ke6 {[%emt 0:00:44]} Rb7 {[%emt 0:00:20]} 73. d6 {[%emt 0:01:59]} b3 {[%emt 0:00:33]} 74. d7+ {[%emt 0:00:00]} Rxd7 {[%emt 0:00:33]} 75. Nxb3 {[%emt 0:00:00]} Rd3 {[%emt 0:00:26]} 76. Nc5 {[%emt 0:00:00]} Ra3 {[%emt 0:00:41]} 77. Kf6 {[%emt 0:01:24]} Rxa5 {[%emt 0:00:23]} 78. Ne6 {[%emt 0:00:16]} Ra1 {[%emt 0:00:36]} 79. Kxg6 {[%emt 0:00:06]} a5 {[%emt 0:00:30]} 80. Kxf5 {[%emt 0:01:44]} a4 {[%emt 0:00:30]} 81. g6 {[%emt 0:00:04]} a3 {[%emt 0:00:33]} 82. g7 {[%emt 0:00:03]} Rg1 {[%emt 0:01:02]} 83. Ng5 {[%emt 0:00:06]} 1-0

[Event "Nordic Chess-ch 2019"]
[Site "Sarpsborg"]
[Date "2019.06.24"]
[Round "6.25"]
[White "Stabbetorp, Jon Anders"]
[Black "Haggar, Haytham"]
[Result "1/2-1/2"]
[ECO "B06"]
[WhiteElo "1817"]
[BlackElo "1309"]
[Annotator "NA"]
[PlyCount "83"]
[EventDate "2019.06.21"]
[EventType "swiss"]
[EventCountry "NOR"]
[SourceTitle "playchess.com"]
[Source "ChessBase"]
[SourceQuality "1"]
[TimeControl "40/5400+30:1800+30"]

1. e4 {[%emt 0:00:00]} g6 {[%emt 0:00:00]} 2. f4 {[%emt 0:00:06]} Bg7 {[%emt 0:00:30]} 3. Nf3 {[%emt 0:00:15]} c6 {[%emt 0:01:45]} 4. d4 {[%emt 0:00:48]} Nf6 {[%emt 0:01:55]} 5. Nc3 {[%emt 0:00:44]} d5 {[%emt 0:01:01]} 6. e5 {[%emt 0:00:29]} Nfd7 {[%emt 0:01:48]} 7. Bd3 {[%emt 0:01:38]} Nb6 {[%emt 0:02:45]} 8. b3 {[%emt 0:02:33]} Bg4 {[%emt 0:01:28]} 9. h3 {[%emt 0:01:15]} Bd7 {[%emt 0:02:44]} 10. a4 {[%emt 0:00:34]} a5 {[%emt 0:00:34]} 11. Ba3 {[%emt 0:01:35]} Na6 {[%emt 0:01:08]} 12. Qe2 {[%emt 0:01:03]} Bh6 {[%emt 0:08:48]} 13. Ng5 {[%emt 0:01:33]} e6 {[%emt 0:05:17]} 14. Nd1 {[%emt 0:03:15]} Nb4 {[%emt 0:01:14]} 15. Ne3 {[%emt 0:00:52]} Bxg5 {[%emt 0:03:37]} 16. fxg5 {[%emt 0:00:08]} Qxg5 {[%emt 0:00:56]} 17. Ng4 {[%emt 0:01:04]} Qh4+ {[%emt 0:02:12]} 18. Kd1 {[%emt 0:02:09]} O-O-O {[%emt 0:03:56]} 19. Nf6 {[%emt 0:04:18]} Qxd4 {[%emt 0:01:06]} 20. Rc1 {[%emt 0:03:53]} Na2 {[%emt 0:02:57]} 21. Qd2 {[%emt 0:09:06]} Nxc1 {[%emt 0:02:30]} 22. Qxa5 {[%emt 0:02:38]} Qxe5 {[%emt 0:12:59]} 23. Qxb6 {[%emt 0:01:37]} Nxd3 {[%emt 0:01:28]} 24. cxd3 {[%emt 0:00:18]} Qa1+ {[%emt 0:01:41]} 25. Ke2 {[%emt 0:00:42]} Qxa3 {[%emt 0:00:24]} 26. Rf1 {[%emt 0:03:45]} Qb2+ {[%emt 0:01:04]} 27. Kd1 {[%emt 0:01:13]} Qxg2 {[%emt 0:01:32]} 28. Rf4 {[%emt 0:01:31]} Qh1+ {[%emt 0:04:01]} 29. Kc2 {[%emt 0:00:39]} Qh2+ {[%emt 0:00:21]} 30. Rf2 {[%emt 0:00:05]} Qc7 {[%emt 0:00:40]} 31. Qa7 {[%emt 0:01:36]} e5 {[%emt 0:01:47]} 32. Kb2 {[%emt 0:02:25]} Bxh3 {[%emt 0:01:14]} 33. a5 {[%emt 0:01:19]} Bf5 {[%emt 0:01:57]} 34. Rc2 {[%emt 0:01:05]} Bxd3 {[%emt 0:01:14]} 35. Rc3 {[%emt 0:00:07]} Bb5 {[%emt 0:00:38]} 36. b4 {[%emt 0:01:05]} d4 {[%emt 0:01:03]} 37. Rc5 {[%emt 0:02:22]} Ba6 {[%emt 0:07:54]} 38. Qa8+ {[%emt 0:01:24]} Qb8 {[%emt 0:00:17]} 39. Rxc6+ {[%emt 0:00:08]} bxc6 {[%emt 0:00:24]} 40. Qxc6+ {[%emt 0:00:30]} Qc7 {[%emt 0:00:40]} 41. Qa8+ {[%emt 0:32:28]} Qb8 {[%emt 0:30:09]} 42. Qc6+ {[%emt 0:00:06]} 1/2-1/2